bitfinex/quotes_SOLUSD_20230113
["timestamp","ask_amount","ask_price","bid_price","bid_amount"]
[1673622766663,44.79,16.748,16.723,113.9376]
[1673622766891,44.79,16.749,16.73,24.19]
[1673622767092,44.79,16.749,16.731,113.9376]
[1673622767726,68.87,16.75,16.731,113.9376]
[1673622768153,17.0,16.749,16.731,113.9376]
[1673622768558,24.08,16.75,16.731,113.9376]
[1673622768902,163.4295,16.758,16.74,24.19]
[1673622769419,163.4295,16.758,16.741,20.0]
[1673622769832,118.6695,16.758,16.741,20.0]
[1673622770048,44.77,16.757,16.741,20.0]
[1673622770252,118.6695,16.758,16.741,20.0]
[1673622770672,44.77,16.757,16.741,20.0]
[1673622771313,118.6695,16.758,16.74,24.19]
[1673622771634,44.76,16.761,16.741,20.0]
[1673622771834,109.5822,16.758,16.741,20.0]
[1673622772152,44.75,16.764,16.742,20.0]
[1673622772362,44.75,16.765,16.742,20.0]
[1673622772567,44.75,16.765,16.743,20.0]
[1673622773097,44.75,16.765,16.744,20.0]
[1673622773310,104.87,16.768,16.745,20.0]
[1673622773833,104.87,16.768,16.75,24.31]
[1673622774151,60.13,16.768,16.751,20.0]
[1673622774366,17.0,16.767,16.751,20.0]
[1673622774582,44.74,16.769,16.751,20.0]
[1673622774971,44.74,16.769,16.752,20.0]
[1673622775200,44.72,16.773,16.752,20.0]
[1673622775413,20.0,16.772,16.752,20.0]
[1673622775623,44.73,16.771,16.752,20.0]
[1673622775938,20.0,16.77,16.752,20.0]
[1673622776472,20.0,16.772,16.752,20.0]
[1673622776657,44.73,16.771,16.752,20.0]
[1673622776868,20.0,16.77,16.751,40.0]
[1673622777196,44.74,16.769,16.751,20.0]
[1673622778231,20.0,16.77,16.751,20.0]
[1673622778435,44.72,16.775,16.751,20.0]
[1673622778873,44.72,16.775,16.752,20.0]
[1673622779087,44.72,16.775,16.753,20.0]
[1673622780037,44.72,16.775,16.754,20.0]
[1673622780349,44.72,16.775,16.755,20.0]
[1673622780559,44.72,16.775,16.755,136.9718]
[1673622780756,44.72,16.775,16.756,20.0]
[1673622780971,44.72,16.775,16.757,20.0]
[1673622781919,44.72,16.775,16.76,24.17]
[1673622782136,44.72,16.775,16.761,20.0]
[1673622782746,44.72,16.775,16.76,24.17]
[1673622783084,24.08,16.78,16.76,24.17]
[1673622783085,44.71,16.779,16.761,40.0]
[1673622783488,44.71,16.779,16.761,20.0]
[1673622783811,44.71,16.779,16.762,20.0]
[1673622784240,60.13,16.781,16.762,20.0]
[1673622784428,89.03,16.78,16.761,20.0]
[1673622784860,17.0,16.779,16.761,20.0]
[1673622785187,44.71,16.778,16.761,20.0]
[1673622785392,17.0,16.777,16.761,20.0]
[1673622785711,44.72,16.776,16.761,20.0]
[1673622786020,44.71,16.779,16.761,20.0]
[1673622786843,17.0,16.778,16.761,20.0]
[1673622787160,44.71,16.777,16.761,20.0]
[1673622787369,17.0,16.776,16.758,114.698]
[1673622787579,17.0,16.776,16.75,141.46]
[1673622787580,64.72,16.775,16.751,20.0]
[1673622787806,24.32,16.77,16.75,44.18]
[1673622788131,64.74,16.769,16.751,111.2053]
[1673622788321,17.0,16.768,16.751,111.2053]
[1673622788649,44.74,16.767,16.751,111.2053]
[1673622789054,104.87,16.768,16.751,111.2053]
[1673622789691,20.0,16.767,16.751,111.2053]
[1673622790020,44.74,16.766,16.751,111.2053]
[1673622791897,20.0,16.765,16.751,111.2053]
[1673622792107,44.75,16.764,16.751,111.2053]
[1673622792738,44.75,16.764,16.74,186.0151]
[1673622792739,20.0,16.763,16.74,88.7051]
[1673622792956,180.7,16.761,16.742,118.2257]
[1673622793274,89.08,16.76,16.742,118.2257]
[1673622793489,64.76,16.76,16.742,118.2257]
[1673622793894,64.76,16.76,16.743,20.0]
[1673622794104,64.76,16.76,16.742,118.2257]
[1673622794532,180.7,16.759,16.742,118.2257]
[1673622794761,44.76,16.758,16.742,118.2257]
[1673622794957,44.76,16.759,16.742,118.2257]
[1673622797595,20.0,16.758,16.742,118.2257]
[1673622797785,61.77,16.757,16.742,118.2257]
[1673622798648,17.0,16.757,16.742,118.2257]
[1673622798834,44.76,16.759,16.742,118.2257]
[1673622799044,17.0,16.756,16.742,118.2257]
[1673622799486,44.76,16.759,16.742,118.2257]
[1673622799798,20.0,16.76,16.743,20.0]
[1673622800007,44.75,16.765,16.744,20.0]
[1673622800226,44.74,16.768,16.75,24.31]
[1673622800536,60.13,16.768,16.751,114.0098]
[1673622800932,44.74,16.769,16.752,20.0]
[1673622801147,44.74,16.769,16.751,114.0098]
[1673622801369,17.0,16.768,16.751,114.0098]
[1673622801583,77.13,16.768,16.751,114.0098]
[1673622801787,44.74,16.767,16.751,114.0098]
[1673622802952,104.87,16.768,16.751,114.0098]
[1673622803460,60.13,16.768,16.751,114.0098]
[1673622804304,24.16,16.77,16.751,114.0098]
[1673622804515,20.0,16.769,16.752,20.0]
[1673622805889,200.7,16.774,16.752,20.0]
[1673622806208,44.72,16.773,16.752,20.0]
[1673622806396,20.0,16.772,16.752,20.0]
[1673622806607,44.73,16.771,16.752,20.0]
[1673622806816,20.0,16.77,16.752,49.8800799]
[1673622807033,44.71,16.777,16.753,20.0]
[1673622807252,44.71,16.779,16.76,24.31]
[1673622807449,225.41,16.779,16.761,115.9311]
[1673622808518,17.0,16.778,16.761,115.9311]
[1673622808729,44.71,16.777,16.761,115.9311]
[1673622808924,44.71,16.778,16.761,115.9311]
[1673622809567,84.29,16.78,16.761,115.9311]
[1673622809568,44.71,16.779,16.761,115.9311]
[1673622809974,225.41,16.779,16.761,115.9311]
[1673622810515,44.71,16.779,16.761,115.4311]
[1673622810710,17.0,16.778,16.761,115.4311]
[1673622811029,44.71,16.777,16.761,115.4311]
[1673622811669,44.7,16.781,16.762,20.0]
[1673622811879,113.2877,16.785,16.762,69.8800799]
[1673622812096,113.2877,16.785,16.763,29.8800799]
[1673622812283,113.2877,16.785,16.764,20.0]
[1673622812492,44.68,16.789,16.77,24.17]
[1673622812718,44.68,16.789,16.771,20.0]
[1673622812932,60.13,16.792,16.771,20.0]
[1673622813249,30.63416082,16.811,16.78,121.58]
[1673622813442,422.08596264,16.809,16.782,20.0]
[1673622813654,44.63,16.808,16.782,416.6]
[1673622814086,44.63,16.808,16.784,20.0]
[1673622814282,44.63,16.808,16.785,1.48465382]
[1673622814491,44.63,16.808,16.785,29.8800799]
[1673622814702,20.0,16.807,16.785,29.8800799]
[1673622814912,44.64,16.806,16.785,29.8800799]
[1673622815133,44.63,16.808,16.785,29.8800799]
[1673622815549,24.32,16.8,16.782,396.6]
[1673622815761,44.66,16.799,16.782,396.6]
[1673622815971,44.66,16.799,16.783,29.8800799]
[1673622816491,44.64,16.806,16.784,20.0]
[1673622816701,20.0,16.805,16.783,29.8800799]
[1673622816922,44.64,16.804,16.785,29.8800799]
[1673622817120,20.0,16.803,16.785,29.8800799]
[1673622817326,44.65,16.802,16.785,29.8800799]
[1673622817561,44.65,16.802,16.782,396.6]
[1673622817562,20.0,16.801,16.782,396.6]
[1673622817761,68.97,16.8,16.782,396.6]
[1673622817980,20.0,16.799,16.78,29.8800799]
[1673622818170,61.66,16.798,16.78,29.8800799]
[1673622818384,20.0,16.796,16.78,29.8800799]
[1673622818585,61.66,16.798,16.78,29.8800799]
[1673622818586,64.67,16.795,16.78,29.8800799]
[1673622818801,17.0,16.794,16.78,29.8800799]
[1673622819033,20.0,16.793,16.78,54.1900799]
[1673622819452,44.66,16.799,16.78,54.1900799]
[1673622820170,44.66,16.799,16.781,20.0]
[1673622820806,44.66,16.799,16.781,49.8800799]
[1673622821017,20.0,16.798,16.781,49.8800799]
[1673622821224,64.66,16.797,16.78,29.8800799]
[1673622821440,20.0,16.795,16.78,29.8800799]
[1673622821864,64.67,16.794,16.78,29.8800799]
[1673622822078,44.66,16.799,16.781,20.0]
[1673622822285,44.65,16.801,16.78,54.1900799]
[1673622822494,44.21,16.8,16.782,29.8800799]
[1673622822819,44.66,16.799,16.78,24.31]
[1673622823017,200.7,16.798,16.778,29.8800799]
[1673622823235,225.36,16.797,16.778,29.8800799]
[1673622823455,60.13,16.795,16.778,29.8800799]
[1673622823670,64.67,16.794,16.778,29.8800799]
[1673622823978,64.67,16.794,16.773,139.3064]
[1673622824193,174.2508,16.794,16.774,29.8800799]
[1673622824816,60.13,16.793,16.774,29.8800799]
[1673622825027,84.67,16.792,16.774,29.8800799]
[1673622825854,265.37,16.792,16.774,29.8800799]
[1673622826080,24.32,16.79,16.774,29.8800799]
[1673622826300,20.0,16.788,16.774,29.8800799]
[1673622826478,44.69,16.787,16.773,119.3064]
[1673622827639,44.69,16.787,16.774,29.8800799]
[1673622827851,44.68,16.789,16.774,29.8800799]
[1673622829849,44.68,16.789,16.773,119.3064]
[1673622830068,44.68,16.789,16.772,29.8800799]
[1673622830276,260.83,16.786,16.772,29.8800799]
[1673622830489,60.13,16.784,16.764,20.0]
[1673622830699,124.83,16.783,16.766,29.8800799]
[1673622830917,64.7,16.783,16.766,29.8800799]
[1673622831846,64.7,16.783,16.764,20.0]
[1673622832385,64.7,16.783,16.765,29.8800799]
[1673622833323,64.7,16.783,16.77,24.31]
[1673622833531,44.68,16.789,16.771,20.0]
[1673622833738,44.67,16.793,16.772,20.0]
[1673622833947,44.67,16.793,16.771,195.3708598]
[1673622834158,20.0,16.791,16.772,29.8800799]
[1673622834370,64.68,16.79,16.772,29.8800799]
[1673622834814,17.0,16.789,16.772,29.8800799]
[1673622835023,44.68,16.788,16.772,29.8800799]
[1673622835440,44.68,16.789,16.772,29.8800799]
[1673622835951,225.38,16.79,16.772,29.8800799]
[1673622837211,249.7,16.79,16.772,29.8800799]
[1673622837645,249.7,16.79,16.771,135.6107]
[1673622837859,249.7,16.79,16.772,29.8800799]
[1673622838284,69.0,16.79,16.772,29.8800799]
[1673622841439,17.0,16.789,16.772,29.8800799]
[1673622841640,44.68,16.788,16.772,29.8800799]
[1673622841859,17.0,16.787,16.771,135.6107]
[1673622842055,44.69,16.786,16.76,121.35]
[1673622842270,24.21,16.78,16.77,29.8800799]
[1673622842486,44.71,16.779,16.77,29.8800799]
[1673622842682,44.71,16.779,16.762,138.5538]
[1673622842683,17.0,16.778,16.762,138.5538]
[1673622843014,44.71,16.777,16.763,29.8800799]
[1673622843227,44.71,16.777,16.764,20.0]
[1673622843415,44.7,16.781,16.764,20.0]
[1673622843626,20.0,16.78,16.765,29.8800799]
[1673622844161,20.0,16.783,16.766,20.0]
[1673622844788,64.7,16.784,16.767,29.8800799]
[1673622845331,20.0,16.784,16.768,20.0]
[1673622845516,20.0,16.788,16.768,20.0]
[1673622845729,44.69,16.787,16.769,29.8800799]
[1673622845936,20.0,16.786,16.769,29.8800799]
[1673622846149,44.69,16.785,16.769,29.8800799]
[1673622846582,20.0,16.784,16.769,29.8800799]
[1673622846795,44.7,16.783,16.769,29.8800799]
[1673622847209,20.0,16.782,16.769,29.8800799]
[1673622847418,44.7,16.781,16.769,29.8800799]
[1673622847636,20.0,16.78,16.769,29.8800799]
[1673622847856,20.0,16.78,16.764,20.0]
[1673622848167,20.0,16.78,16.765,29.8800799]
[1673622848372,44.71,16.779,16.765,29.8800799]
[1673622848586,44.7,16.781,16.765,29.8800799]
[1673622848775,20.0,16.78,16.765,29.8800799]
[1673622848989,44.71,16.779,16.765,29.8800799]
[1673622849644,20.0,16.78,16.765,29.8800799]
[1673622849832,20.0,16.78,16.75,20.0]
[1673622850046,20.0,16.783,16.763,20.0]
[1673622850372,20.0,16.783,16.764,29.8800799]
[1673622850779,44.68,16.788,16.764,29.8800799]
[1673622850985,44.68,16.789,16.77,24.31]
[1673622851220,44.68,16.791,16.771,132.8538]
[1673622851414,20.0,16.79,16.771,162.7338799]
[1673622851615,20.0,16.79,16.772,20.0]
[1673622851826,20.0,16.79,16.772,49.8800799]
[1673622852158,20.0,16.79,16.773,29.8800799]
[1673622852371,20.0,16.79,16.774,6.87877]
[1673622852685,64.67,16.793,16.774,6.87877]
[1673622852884,64.67,16.793,16.772,20.0]
[1673622854142,44.67,16.793,16.78,24.31]
[1673622854379,30.63416082,16.796,16.781,20.0]
[1673622855740,30.63416082,16.796,16.782,29.8800799]
[1673622859935,30.63416082,16.796,16.783,20.0]
[1673622860260,30.63416082,16.796,16.782,29.8800799]
[1673622860472,30.63416082,16.796,16.784,29.8800799]
[1673622862048,30.63416082,16.796,16.782,20.0]
[1673622863298,30.63416082,16.796,16.781,155.0698]
[1673622863508,30.63416082,16.796,16.781,135.0698]
[1673622863829,44.67,16.795,16.781,135.0698]
[1673622864260,30.63416082,16.796,16.781,135.0698]
[1673622864453,44.67,16.795,16.781,135.0698]
[1673622865415,20.0,16.794,16.781,20.0]
[1673622865613,44.67,16.795,16.777,20.0]
[1673622865815,44.67,16.795,16.777,40.0]
[1673622866257,44.67,16.795,16.777,20.0]
[1673622866570,180.7,16.794,16.776,396.6]
[1673622866783,24.32,16.79,16.776,396.6]
[1673622867100,44.68,16.789,16.776,396.6]
[1673622867311,44.68,16.789,16.775,111.3742]
[1673622867516,44.68,16.789,16.776,29.8800799]
[1673622867712,44.68,16.789,16.777,29.8800799]
[1673622867922,44.67,16.792,16.778,20.0]
[1673622868134,20.0,16.791,16.777,29.8800799]
[1673622868466,44.68,16.79,16.777,29.8800799]
[1673622868662,44.68,16.79,16.775,111.3742]
[1673622868663,44.68,16.79,16.779,29.8800799]
[1673622869190,20.0,16.791,16.779,29.8800799]
[1673622869401,20.0,16.792,16.779,29.8800799]
[1673622869610,44.68,16.791,16.779,29.8800799]
[1673622869823,20.0,16.79,16.775,111.3742]
[1673622870356,20.0,16.791,16.777,29.8800799]
[1673622870549,20.0,16.792,16.778,20.0]
[1673622870970,20.0,16.792,16.777,29.8800799]
[1673622871288,44.68,16.791,16.778,29.8800799]
[1673622871508,20.0,16.79,16.778,29.8800799]
[1673622872233,44.68,16.789,16.778,29.8800799]
[1673622872547,44.68,16.791,16.778,29.8800799]
[1673622872768,20.0,16.79,16.778,29.8800799]
[1673622873195,20.0,16.791,16.778,29.8800799]
[1673622873511,44.68,16.79,16.778,29.8800799]
[1673622873941,44.68,16.79,16.775,111.3742]
[1673622874134,44.68,16.79,16.776,29.8800799]
[1673622874564,43.68,16.79,16.776,29.8800799]
[1673622878221,43.68,16.79,16.771,20.0]
[1673622878431,43.68,16.79,16.776,29.8800799]
[1673622879606,17.0,16.789,16.776,29.8800799]
[1673622879817,44.68,16.788,16.776,29.8800799]
[1673622880048,44.68,16.79,16.776,29.8800799]
[1673622882549,20.0,16.791,16.776,29.8800799]
[1673622882760,20.0,16.792,16.777,20.0]
[1673622883175,44.66,16.798,16.78,24.31]
[1673622883394,44.66,16.799,16.781,20.0]
[1673622883718,20.0,16.8,16.781,20.0]
[1673622883923,44.66,16.799,16.781,49.8800799]
[1673622884881,97.13,16.798,16.781,20.0]
[1673622885065,104.79,16.797,16.779,20.0]
[1673622885280,104.79,16.797,16.782,29.8800799]
[1673622885490,17.0,16.796,16.782,29.8800799]
[1673622885810,245.37,16.795,16.778,111.7998]
[1673622886029,20.0,16.794,16.778,111.7998]
[1673622886237,64.67,16.793,16.778,111.7998]
[1673622886448,64.67,16.793,16.779,29.8800799]
[1673622886659,20.0,16.792,16.779,29.8800799]
[1673622886880,44.68,16.791,16.779,29.8800799]
[1673622887185,20.0,16.79,16.779,29.8800799]
[1673622887397,44.68,16.789,16.779,29.8800799]
[1673622889732,44.68,16.789,16.775,396.6]
[1673622889947,44.68,16.789,16.772,117.0845]
[1673622890255,44.68,16.789,16.776,29.8800799]
[1673622890783,60.13,16.787,16.767,109.3962]
[1673622890983,44.69,16.786,16.768,29.8800799]
[1673622891312,20.0,16.785,16.768,29.8800799]
[1673622891527,44.7,16.784,16.768,29.8800799]
[1673622891832,20.0,16.783,16.765,20.0]
[1673622892032,44.7,16.782,16.765,20.0]
[1673622893915,109.6348,16.785,16.767,20.0]
[1673622894125,44.7,16.784,16.768,29.8800799]
[1673622894345,44.7,16.784,16.769,20.0]
[1673622894774,109.6348,16.785,16.77,29.8800799]
[1673622894981,109.6348,16.785,16.771,20.0]
[1673622895507,109.6348,16.785,16.765,20.0]
[1673622895508,60.13,16.783,16.765,20.0]
[1673622895720,124.83,16.782,16.766,29.8800799]
[1673622896560,80.13,16.782,16.766,29.8800799]
[1673622896767,44.7,16.781,16.766,29.8800799]
[1673622897188,20.0,16.78,16.766,29.8800799]
[1673622897722,64.7,16.781,16.766,29.8800799]
[1673622897910,64.7,16.781,16.764,116.4097]
[1673622898333,64.7,16.781,16.766,20.0]
[1673622898550,20.0,16.781,16.766,20.0]
[1673622898760,20.0,16.783,16.766,29.8800799]
[1673622898971,44.7,16.782,16.766,29.8800799]
[1673622899293,20.0,16.781,16.766,29.8800799]
[1673622899511,44.71,16.78,16.766,29.8800799]
[1673622899822,20.0,16.779,16.766,29.8800799]
[1673622900223,20.0,16.782,16.766,29.8800799]
[1673622900434,44.7,16.781,16.767,20.0]
[1673622900643,20.0,16.78,16.767,20.0]
[1673622900971,109.6348,16.785,16.768,29.8800799]
[1673622901189,64.7,16.784,16.768,29.8800799]
[1673622901392,109.6348,16.785,16.769,20.0]
[1673622901609,109.6348,16.785,16.77,20.0]
[1673622901821,109.6348,16.785,16.771,20.0]
[1673622902547,109.6348,16.785,16.767,20.0]
[1673622902548,109.6348,16.785,16.768,20.0]
[1673622902764,154.3248,16.785,16.768,20.0]
[1673622902970,109.6348,16.785,16.768,20.0]
[1673622903385,44.7,16.784,16.768,20.0]
[1673622903588,44.7,16.784,16.748,498.81013892]
[1673622903799,20.0,16.783,16.762,49.8800799]
[1673622904009,104.83,16.782,16.765,29.8800799]
[1673622904329,20.0,16.781,16.765,29.8800799]
[1673622904746,44.71,16.78,16.765,29.8800799]
[1673622905275,20.0,16.779,16.765,29.8800799]
[1673622905696,64.71,16.78,16.765,29.8800799]
[1673622905915,180.7,16.779,16.75,141.48]
[1673622906232,44.71,16.778,16.756,29.8800799]
[1673622906445,44.71,16.779,16.756,29.8800799]
[1673622906665,44.71,16.779,16.76,24.31]
[1673622906855,17.0,16.778,16.761,115.8232]
[1673622907192,44.71,16.777,16.761,115.8232]
[1673622907384,44.71,16.779,16.761,115.8232]
[1673622907582,44.71,16.779,16.762,29.8800799]
[1673622908003,44.16,16.78,16.762,29.8800799]
[1673622908535,61.71,16.779,16.762,29.8800799]
[1673622909577,20.0,16.778,16.761,115.8232]
[1673622909793,44.71,16.777,16.761,115.8232]
[1673622910437,110.1087,16.776,16.761,115.8232]
[1673622910664,44.72,16.775,16.751,20.0]
[1673622910964,44.72,16.775,16.753,130.5358]
[1673622911488,44.72,16.775,16.754,49.8800799]
[1673622911699,110.1087,16.776,16.76,24.19]
[1673622911901,110.1087,16.776,16.761,20.0]
[1673622912321,110.1087,16.776,16.761,49.8800799]
[1673622912855,110.1087,16.776,16.762,29.8800799]
[1673622913271,471.5087,16.776,16.762,29.8800799]
[1673622913591,471.5087,16.776,16.761,20.0]
[1673622914203,17.0,16.775,16.762,29.8800799]
[1673622914440,17.0,16.775,16.761,20.0]
[1673622914640,17.0,16.775,16.755,20.0]
[1673622914833,17.0,16.775,16.761,29.8800799]
[1673622915044,17.0,16.775,16.762,20.0]
[1673622915380,17.0,16.775,16.755,20.0]
[1673622915381,20.0,16.772,16.755,20.0]
[1673622915591,361.4,16.771,16.755,20.0]
[1673622916110,361.4,16.771,16.755,49.8800799]
[1673622916833,361.4,16.771,16.756,20.0]
[1673622917069,361.4,16.771,16.757,20.0]
[1673622917266,361.4,16.771,16.757,49.8800799]
[1673622917475,361.4,16.771,16.758,29.8800799]
[1673622917698,361.4,16.771,16.759,20.0]
[1673622918736,361.4,16.772,16.759,20.0]
[1673622919385,44.72,16.775,16.76,29.8800799]
[1673622919579,406.12,16.775,16.76,29.8800799]
[1673622919792,406.12,16.775,16.761,20.0]
[1673622920004,361.4,16.775,16.761,20.0]
[1673622920954,361.4,16.775,16.762,29.8800799]
[1673622922332,17.0,16.774,16.762,29.8800799]
[1673622923166,361.4,16.775,16.762,29.8800799]
[1673622924532,44.71,16.779,16.763,20.0]
[1673622924753,64.71,16.78,16.763,20.0]
[1673622924962,64.71,16.78,16.764,29.8800799]
[1673622925273,406.11,16.78,16.765,20.0]
[1673622925463,361.4,16.78,16.766,20.0]
[1673622925674,361.4,16.78,16.766,49.8800799]
[1673622925884,361.4,16.78,16.767,29.8800799]
[1673622926207,361.4,16.783,16.768,20.0]
[1673622926417,406.1,16.782,16.768,20.0]
[1673622928415,361.4,16.783,16.769,29.8800799]
[1673622928631,406.1,16.782,16.77,20.0]
[1673622929389,406.1,16.782,16.766,20.0]
[1673622929583,361.4,16.78,16.764,20.0]
[1673622929789,406.11,16.779,16.765,29.8800799]
[1673622929996,44.7,16.784,16.766,20.0]
[1673622930216,44.7,16.784,16.767,20.0]
[1673622930417,44.7,16.784,16.77,24.31]
[1673622930634,406.1,16.784,16.771,20.0]
[1673622931254,44.7,16.784,16.771,20.0]
[1673622931465,109.6348,16.785,16.773,20.0]
[1673622931802,17.0,16.784,16.773,20.0]
[1673622932531,44.7,16.783,16.773,49.8800799]
[1673622932724,406.08,16.791,16.773,49.8800799]
[1673622933061,20.0,16.79,16.773,49.8800799]
[1673622933269,361.4,16.788,16.773,49.8800799]
[1673622933469,44.69,16.787,16.773,49.8800799]
[1673622933798,406.09,16.787,16.773,49.8800799]
[1673622934020,406.09,16.787,16.773,29.8800799]
[1673622934324,406.09,16.787,16.771,138.4383]
[1673622934835,361.4,16.788,16.771,138.4383]
[1673622935046,44.69,16.787,16.773,20.0]
[1673622935474,44.69,16.787,16.774,29.8800799]
[1673622935787,44.69,16.787,16.773,20.0]
[1673622936007,109.6348,16.794,16.78,24.31]
[1673622936195,44.66,16.797,16.781,40.0]
[1673622936403,44.66,16.797,16.781,69.8800799]
[1673622936729,44.66,16.797,16.782,29.8800799]
[1673622936929,44.65,16.801,16.783,20.0]
[1673622937456,44.65,16.801,16.783,49.8800799]
[1673622937879,20.0,16.8,16.781,152.5035]
[1673622938083,44.66,16.799,16.781,182.3835799]
[1673622938293,17.0,16.798,16.781,182.3835799]
[1673622938502,20.0,16.8,16.781,182.3835799]
[1673622938503,44.66,16.797,16.781,182.3835799]
[1673622938713,44.66,16.799,16.781,182.3835799]
[1673622941575,44.66,16.799,16.781,162.3835799]
[1673622943593,406.06,16.799,16.781,132.5035]
[1673622944220,20.0,16.798,16.781,132.5035]
[1673622944416,44.66,16.797,16.781,132.5035]
[1673622945037,44.66,16.798,16.781,132.5035]
[1673622945253,64.65,16.8,16.782,29.8800799]
[1673622945476,20.0,16.8,16.782,29.8800799]
[1673622945884,279.56787525,16.836,16.804,327.71452879]
[1673622946087,261.46137525,16.836,16.83,241.79]
[1673622946305,50.05643267,16.836,16.831,27.03358661]
[1673622946634,261.88925916,16.869,16.832,26.85507]
[1673622946822,261.88925916,16.869,16.84,241.47]
[1673622947164,44.47,16.868,16.841,55.85141]
[1673622947374,44.45,16.877,16.842,43.851]
[1673622947591,0.00892158,16.85,16.843,59.33059]
[1673622947898,0.00892158,16.85,16.844,11.12829661]
[1673622948110,0.00892158,16.85,16.846,4.27810661]
[1673622948294,0.00892158,16.85,16.844,36.7302699]
[1673622948295,0.00892158,16.85,16.845,4.27810661]
[1673622948505,0.00892158,16.85,16.845,63.65372776]
[1673622948733,44.5,16.856,16.845,63.65372776]
[1673622949136,64.5,16.857,16.847,4.27810661]
[1673622949560,64.5,16.857,16.85,7.5]
[1673622949781,64.5,16.857,16.846,4.27810661]
[1673622950185,17.0,16.856,16.846,4.27810661]
[1673622950397,44.51,16.855,16.846,4.27810661]
[1673622950605,17.0,16.854,16.846,0.00810661]
[1673622950822,17.0,16.854,16.845,0.01372776]
[1673622950823,64.51,16.853,16.845,0.01372776]
[1673622951029,32.07,16.85,16.821,20.0]
[1673622951252,44.52,16.849,16.822,6.85914]
[1673622951448,44.52,16.849,16.83,16.02]
[1673622951449,61.52,16.849,16.83,16.02]
[1673622951988,20.0,16.848,16.831,29.8800799]
[1673622952196,44.53,16.847,16.831,29.8800799]
[1673622952395,17.0,16.846,16.831,29.8800799]
[1673622952606,44.53,16.845,16.831,29.8800799]
[1673622952805,17.0,16.844,16.831,29.8800799]
[1673622953022,44.54,16.843,16.831,29.8800799]
[1673622953250,37.0,16.842,16.831,29.8800799]
[1673622953465,44.54,16.841,16.831,29.8800799]
[1673622953783,17.0,16.84,16.822,6.85914]
[1673622954093,44.55,16.839,16.823,29.8800799]
[1673622954492,17.0,16.838,16.823,29.8800799]
[1673622954703,44.55,16.837,16.823,29.8800799]
[1673622954914,17.0,16.836,16.823,29.8800799]
[1673622955332,17.0,16.836,16.822,6.85914]
[1673622955545,44.56,16.835,16.822,6.85914]
[1673622955755,17.0,16.834,16.819,29.8800799]
[1673622955966,44.57,16.833,16.82,29.8800799]
[1673622956172,17.0,16.832,16.82,29.8800799]
[1673622956404,17.0,16.834,16.813,32.55]
[1673622956608,44.57,16.833,16.817,87.43996193]
[1673622956823,20.0,16.831,16.817,87.43996193]